fUST/lending_fUST_20240115
["ID","MTS","AMOUNT","RATE_DAILY","PERIOD"]
[311653059,1705283443642,-259.15918593,0.00028217,2]
[311653060,1705283443651,-10575.43310448,0.00028217,2]
[311653061,1705283443660,-5268.32754065,0.00028217,2]
[311653062,1705283443670,-155.12808355,0.00028217,2]
[311653063,1705283443679,-165.02001745,0.00028217,2]
[311653064,1705283443691,-155.30837195,0.00028217,2]
[311653065,1705283443700,-155.34188934,0.00028217,2]
[311653066,1705283443710,-1255.8233818,0.00028217,2]
[311653067,1705283443719,-155.27344603,0.00028217,2]
[311653068,1705283443728,-155.05578633,0.00028217,2]
[311653069,1705283443738,-858.53563101,0.00028217,2]
[311653070,1705283443747,-203.29756212,0.00028218,2]
[311653071,1705283443756,-500.0,0.00028218,4]
[311653072,1705283443766,-213.71616018,0.00028218,4]
[311653073,1705283443776,-499.10922353,0.00028218,4]
[311653074,1705283443785,-327.4370105,0.00028218,4]
[311653075,1705283443795,-204.27351338,0.00028218,4]
[311653076,1705283443804,-500.0,0.00028218,4]
[311653077,1705283443813,-184.39862049,0.00028218,4]
[311653078,1705283443823,-462.86372702,0.00028218,4]
[311653079,1705283443833,-471.5075995,0.00028218,4]
[311653080,1705283443843,-492.38358498,0.00028218,4]
[311653081,1705283443852,-155.27826567,0.00028219,2]
[311653082,1705283443861,-87192.1725454,0.00028219,7]
[311653083,1705283443871,-3316.84809972,0.00028219,2]
[311653084,1705283443880,-261.19258853,0.00028219,2]
[311653085,1705283443889,-212.00277784,0.00028219,2]
[311653086,1705283443898,-500.0,0.00028219,2]
[311653087,1705283443907,-538.58,0.00028219,2]
[311653088,1705283443917,-273.24057728,0.00028219,2]
[311653089,1705283443926,-195.47469929,0.00028219,2]
[311653090,1705283443935,-510.72,0.00028219,2]
[311653091,1705283443945,-500.0,0.00028219,2]
[311653092,1705283443955,-1205.71,0.00028219,2]
[311653093,1705283443965,-500.0,0.00028219,2]
[311653094,1705283443974,-500.0,0.00028219,2]
[311653095,1705283443984,-1955.72,0.00028219,2]
[311653096,1705283443993,-518.15,0.00028219,2]
[311653097,1705283444003,-595.09,0.00028219,2]
[311653098,1705283444012,-810.15,0.00028219,2]
[311653099,1705283444021,-500.0,0.00028219,2]
[311653100,1705283444031,-500.0,0.00028219,2]
[311653101,1705283444041,-500.0,0.00028219,2]
[311653102,1705283444051,-525.58,0.00028219,2]
[311653103,1705283444060,-500.0,0.00028219,2]
[311653104,1705283444069,-3253.91,0.00028219,2]
[311653105,1705283444078,-1225.79,0.00028219,2]
[311653106,1705283444088,-500.0,0.00028219,2]
[311653107,1705283444097,-500.0,0.00028219,2]
[311653108,1705283444107,-5164.5,0.00028219,2]
[311653109,1705283444116,-500.0,0.00028219,2]
[311653110,1705283444126,-502.91814727,0.00028219,2]
[311653111,1705283444135,-500.0,0.00028219,2]
[311653112,1705283444145,-757.98,0.00028219,2]
[311653113,1705283444154,-622.66,0.00028219,2]
[311653114,1705283444164,-500.0,0.00028219,2]
[311653115,1705283444250,-1024.06,0.00028219,2]
[311653116,1705283444260,-507.70866231,0.00028219,2]
[311653117,1705283444270,-884.36,0.00028219,2]
[311653118,1705283444280,-618.92,0.00028219,2]
[311653119,1705283444289,-302.73916427,0.00028219,2]
[311653120,1705283444299,-1208.32,0.00028219,2]
[311653121,1705283444309,-500.0,0.00028219,2]
[311653122,1705283444318,-500.0,0.00028219,2]
[311653123,1705283444328,-1109.21,0.00028219,2]
[311653124,1705283444338,-1016.79,0.00028219,2]
[311653125,1705283444347,-568.38,0.00028219,2]
[311653126,1705283444357,-1169.24,0.00028219,2]
[311653127,1705283444367,-196.83956838,0.00028219,2]
[311653128,1705283444376,-500.0,0.00028219,2]
[311653129,1705283444386,-2116.12,0.00028219,2]
[311653130,1705283444396,-4937.13,0.00028219,2]
[311653131,1705283444407,-2045.09,0.00028219,2]
[311653132,1705283444416,-948.49,0.00028219,2]
[311653133,1705283444426,-500.0,0.00028219,2]
[311653134,1705283444436,-12056.44,0.00028219,2]
[311653135,1705283444445,-5912.85,0.00028219,2]
[311653136,1705283444455,-500.0,0.00028219,2]
[311653137,1705283444464,-779.71,0.00028219,2]
[311653138,1705283444474,-500.0,0.00028219,2]
[311653139,1705283444483,-3475.43,0.00028219,2]
[311653140,1705283444492,-500.0,0.00028219,2]
[311653141,1705283444502,-783.3,0.00028219,2]
[311653142,1705283444511,-500.0,0.00028219,2]
[311653143,1705283444521,-500.0,0.00028219,2]
[311653144,1705283444531,-500.0,0.00028219,2]
[311653145,1705283444541,-500.0,0.00028219,2]
[311653146,1705283444551,-500.0,0.00028219,2]
[311653147,1705283444560,-19479.48,0.00028219,2]
[311653148,1705283444569,-634.8,0.00028219,2]
[311653149,1705283444579,-500.0,0.00028219,2]
[311653150,1705283444588,-1533.71,0.00028219,2]
[311653151,1705283444597,-685.11,0.00028219,2]
[311653152,1705283444606,-2218.57,0.00028219,2]
[311653153,1705283444616,-605.93,0.00028219,2]
[311653154,1705283444626,-698.3,0.00028219,2]
[311653155,1705283444636,-236.8989473,0.00028219,2]
[311653156,1705283444646,-153.0,0.00028219,2]
[311653157,1705283444656,-153.0,0.00028219,2]
[311653158,1705283444672,-153.0,0.00028219,2]
[311653159,1705283444682,-153.0,0.00028219,2]
[311653160,1705283444692,-151.0,0.00028493,2]
[311653161,1705283444700,-500.0,0.00028493,2]
[311653162,1705283444711,-538.58,0.00028493,2]
[311653163,1705283444721,-510.72,0.00028493,2]
[311653164,1705283444730,-500.0,0.00028493,2]
[311653165,1705283444739,-1205.71,0.00028493,2]
[311653166,1705283444749,-500.0,0.00028493,2]
[311653167,1705283444759,-412.90018737,0.00028493,2]
[311653168,1705283444769,-1955.72,0.00028493,2]
[311653169,1705283444778,-518.15,0.00028493,2]
[311653170,1705283444788,-595.09,0.00028493,2]
[311653171,1705283444797,-810.15,0.00028493,2]
[311653172,1705283444807,-500.0,0.00028493,2]
[311653173,1705283444816,-500.0,0.00028493,2]
[311653174,1705283444826,-500.0,0.00028493,2]
[311653175,1705283444835,-525.58,0.00028493,2]
[311653176,1705283444845,-500.0,0.00028493,2]
[311653177,1705283444855,-3253.91,0.00028493,2]
[311653178,1705283444864,-1225.79,0.00028493,2]
[311653179,1705283444874,-500.0,0.00028493,2]
[311653180,1705283444883,-500.0,0.00028493,2]
[311653181,1705283444893,-5164.5,0.00028493,2]
[311653182,1705283444903,-500.0,0.00028493,2]
[311653183,1705283444912,-500.0,0.00028493,2]
[311653184,1705283444922,-757.98,0.00028493,2]
[311653185,1705283444931,-622.66,0.00028493,2]
[311653186,1705283444942,-500.0,0.00028493,2]
[311653187,1705283444951,-1024.06,0.00028493,2]
[311653188,1705283444961,-884.36,0.00028493,2]
[311653189,1705283444970,-618.92,0.00028493,2]
[311653190,1705283444979,-1208.32,0.00028493,2]
[311653191,1705283444989,-500.0,0.00028493,2]
[311653192,1705283444998,-500.0,0.00028493,2]
[311653193,1705283445008,-1109.21,0.00028493,2]
[311653194,1705283445017,-1016.79,0.00028493,2]
[311653195,1705283445027,-568.38,0.00028493,2]
[311653196,1705283445036,-1169.24,0.00028493,2]
[311653197,1705283445045,-263.87300385,0.00028493,2]
[311653198,1705283445054,-2116.12,0.00028493,2]
[311653199,1705283445064,-4937.13,0.00028493,2]
[311653200,1705283445073,-2045.09,0.00028493,2]
[311653201,1705283445082,-948.49,0.00028493,2]
[311653202,1705283445091,-500.0,0.00028493,2]
[311653203,1705283445100,-5912.85,0.00028493,2]
[311653204,1705283445109,-12056.44,0.00028493,2]
[311653205,1705283445119,-500.0,0.00028493,2]
[311653206,1705283445129,-779.71,0.00028493,2]
[311653207,1705283445140,-500.0,0.00028493,2]
[311653208,1705283445149,-3475.43,0.00028493,2]
[311653209,1705283445158,-500.0,0.00028493,2]
[311653210,1705283445168,-783.3,0.00028493,2]
[311653211,1705283445177,-500.0,0.00028493,2]
[311653212,1705283445187,-500.0,0.00028493,2]
[311653213,1705283445197,-500.0,0.00028493,2]
[311653214,1705283445206,-500.0,0.00028493,2]
[311653215,1705283445215,-500.0,0.00028493,2]
[311653216,1705283445224,-19479.48,0.00028493,2]
[311653217,1705283445234,-634.8,0.00028493,2]
[311653218,1705283445243,-500.0,0.00028493,2]
[311653219,1705283445252,-1533.71,0.00028493,2]
[311653220,1705283445261,-685.11,0.00028493,2]
[311653221,1705283445272,-2218.57,0.00028493,2]
[311653222,1705283445281,-605.93,0.00028493,2]
[311653223,1705283445290,-698.3,0.00028493,2]
[311653224,1705283445300,-391.0,0.00028599,15]
[311653225,1705283445310,-250.0,0.0002866,2]
[311653226,1705283445319,-238.525294,0.000287,2]
[311653227,1705283445328,-217.02885693,0.00028767,2]
[311653228,1705283445338,-538.58,0.00028767,2]
[311653229,1705283445347,-510.72,0.00028767,2]
[311653230,1705283445356,-500.0,0.00028767,2]
[311653231,1705283445366,-1205.71,0.00028767,2]
[311653232,1705283445376,-500.0,0.00028767,2]
[311653233,1705283445385,-1955.72,0.00028767,2]
[311653234,1705283445395,-518.15,0.00028767,2]
[311653235,1705283445404,-595.09,0.00028767,2]
[311653236,1705283445413,-810.15,0.00028767,2]
[311653237,1705283445422,-500.0,0.00028767,2]
[311653238,1705283445431,-500.0,0.00028767,2]
[311653239,1705283445442,-496.6288057,0.00028767,2]
[311653240,1705283445451,-525.58,0.00028767,2]
[311653241,1705283445460,-500.0,0.00028767,2]
[311653242,1705283445470,-3253.91,0.00028767,2]
[311653243,1705283445479,-1225.79,0.00028767,2]
[311653244,1705283445488,-500.0,0.00028767,2]
[311653245,1705283445498,-500.0,0.00028767,2]
[311653246,1705283445507,-5164.5,0.00028767,2]
[311653247,1705283445516,-500.0,0.00028767,2]
[311653248,1705283445526,-500.0,0.00028767,2]
[311653249,1705283445535,-757.98,0.00028767,2]
[311653250,1705283445545,-622.66,0.00028767,2]
[311653251,1705283445554,-155.0,0.00028767,2]
[311653252,1705283445564,-500.0,0.00028767,2]
[311653253,1705283445573,-1024.06,0.00028767,2]
[311653254,1705283445583,-884.36,0.00028767,2]
[311653255,1705283445593,-618.92,0.00028767,2]
[311653256,1705283445602,-1208.32,0.00028767,2]
[311653257,1705283445611,-500.0,0.00028767,2]
[311653258,1705283445620,-500.0,0.00028767,2]
[311653259,1705283445629,-1109.21,0.00028767,2]
[311653260,1705283445638,-1016.79,0.00028767,2]
[311653261,1705283445648,-568.38,0.00028767,2]
[311653262,1705283445658,-1169.24,0.00028767,2]
[311653263,1705283445667,-2116.12,0.00028767,2]
[311653264,1705283445679,-4937.13,0.00028767,2]
[311653265,1705283445689,-2045.09,0.00028767,2]
[311653266,1705283445699,-948.49,0.00028767,2]
[311653267,1705283445708,-500.0,0.00028767,2]
[311653268,1705283445717,-12056.44,0.00028767,2]
[311653269,1705283445726,-5912.85,0.00028767,2]
[311653270,1705283445735,-500.0,0.00028767,2]
[311653271,1705283445745,-779.71,0.00028767,2]
[311653272,1705283445754,-500.0,0.00028767,2]
[311653273,1705283445764,-3475.43,0.00028767,2]
[311653274,1705283445773,-500.0,0.00028767,2]
[311653275,1705283445784,-783.3,0.00028767,2]
[311653276,1705283445793,-264.33192153,0.00028767,2]
[311653277,1705283445803,-500.0,0.00028767,2]
[311653278,1705283445812,-559.72216916,0.00028767,2]
[311653279,1705283445821,-500.0,0.00028767,2]
[311653280,1705283445831,-500.0,0.00028767,2]
[311653281,1705283445840,-19479.48,0.00028767,2]
[311653282,1705283445849,-634.8,0.00028767,2]
[311653283,1705283445858,-500.0,0.00028767,2]
[311653284,1705283445868,-1533.71,0.00028767,2]
[311653285,1705283445877,-685.11,0.00028767,2]
[311653286,1705283445887,-2218.57,0.00028767,2]
[311653287,1705283445896,-605.93,0.00028767,2]
[311653288,1705283445905,-698.3,0.00028767,2]
[311653289,1705283445915,-9194.4070928,0.00028945,3]
[311653290,1705283445925,-5000.0,0.00028945,5]
[311653292,1705283445934,-5000.0,0.00028945,5]
[311653293,1705283445943,-10584.33040416,0.00028945,3]
[311653294,1705283445953,-155.03255684,0.00029,2]
[311653295,1705283445963,-2046.884197,0.00029,2]
[311653296,1705283445972,-10137.76897997,0.00029008,3]
[311653307,1705283446269,-1615.21339994,0.00029008,3]
[311653308,1705283446332,-622.72884227,0.00027396,2]
[311653310,1705283471371,18925.90790467,0.00020721,2]
[311653317,1705283734964,155.27826567,0.00020721,2]
[311653318,1705283735397,87192.1725454,0.00020721,2]
[311653319,1705283797473,1358.28609868,0.00020721,5]
[311653320,1705283858092,1265.47495864,0.00020721,2]
[311653321,1705283901292,151.54242915,0.0002068,2]
[311653325,1705283982855,3846.56931336,0.0002068,2]
[311653327,1705284035425,151634.1864733,0.0002068,2]
[311653329,1705284170840,152.02968984,0.00020577,2]
[311653333,1705284548660,342.68350415,0.00020577,2]
[311653334,1705284554425,1274.61924892,0.00020577,2]
[311653335,1705284570680,289.21355465,0.00020577,2]
[311653336,1705284576420,1274.61924892,0.00020577,2]
[311653338,1705284594424,271.32397322,0.00020577,2]
[311653354,1705284632479,-164.42093675,0.00024505,2]
[311653356,1705284632489,-20848.89855073,0.00024505,2]
[311653358,1705284632499,-155.00465014,0.00024506,2]
[311653360,1705284632510,-3126.02728391,0.00024506,2]
[311653362,1705284632520,-272.20843011,0.00024507,2]
[311653364,1705284632531,-526.6341382,0.00024549,2]
[311653366,1705284632540,-193.69584884,0.00024555,2]
[311653368,1705284632550,-4004.14053887,0.00024655,2]
[311653370,1705284632560,-288.5095288,0.00024727,2]
[311653372,1705284632570,-591.88588825,0.00026667,2]
[311653374,1705284632579,-274.36755231,0.00027001,2]
[311653376,1705284632590,-200.0,0.00027002,15]
[311653377,1705284632599,-155.05578633,0.00027394,2]
[311653378,1705284632609,-155.12808355,0.00027394,2]
[311653379,1705284632619,-155.30837195,0.00027394,2]
[311653380,1705284632628,-1255.8233818,0.00027394,2]
[311653381,1705284632638,-155.27344603,0.00027394,2]
[311653382,1705284632647,-155.34188934,0.00027394,2]
[311653383,1705284632659,-858.53563101,0.00027394,2]
[311653384,1705284632668,-5268.32754065,0.00027394,2]
[311653385,1705284632677,-155.19121382,0.00027394,2]
[311653386,1705284632686,-10575.43310448,0.00027394,2]
[311653387,1705284632695,-259.15918593,0.00027394,2]
[311653388,1705284632704,-155.56443103,0.00027394,2]
[311653389,1705284632714,-157.77559155,0.00027394,2]
[311653390,1705284632726,-1579.25587195,0.00027394,2]
[311653391,1705284632735,-323.80113916,0.00027394,2]
[311653392,1705284632745,-310.03111324,0.00027395,2]
[311653393,1705284632754,-327.98469193,0.00027396,2]
[311653394,1705284632763,-1197.65996133,0.00027396,2]
[311653395,1705284632773,-155.82795528,0.00027396,2]
[311653396,1705284632782,-191.70792365,0.00027396,2]
[311653397,1705284632879,-162.74847299,0.00027396,2]
[311653398,1705284632917,-247.08172832,0.00027396,2]
[311653399,1705284632928,-1743.95636298,0.00027396,2]
[311653400,1705284632938,-37022.894441,0.00027396,2]
[311653401,1705284632947,-1416.1646277,0.00027396,2]
[311653402,1705284632957,-15942.09608679,0.00027396,2]
[311653403,1705284632966,-3316.84809972,0.00027396,2]
[311653404,1705284632976,-500.0,0.00027397,2]
[311653405,1705284632985,-500.0,0.00027397,2]
[311653406,1705284632994,-500.0,0.00027397,2]
[311653407,1705284633003,-500.0,0.00027397,2]
[311653408,1705284633012,-503.76042726,0.00027397,2]
[311653409,1705284633023,-500.0,0.00027397,2]
[311653410,1705284633032,-500.0,0.00027397,2]
[311653411,1705284633042,-641.26847259,0.00027397,2]
[311653412,1705284633051,-502.56420914,0.00027397,2]
[311653413,1705284633060,-500.0,0.00027397,2]
[311653414,1705284633069,-502.26651001,0.00027397,2]
[311653415,1705284633079,-500.0,0.00027397,2]
[311653416,1705284633088,-500.0,0.00027397,2]
[311653417,1705284633097,-496.66696298,0.00027397,2]
[311653418,1705284633107,-500.0,0.00027397,2]
[311653419,1705284633117,-500.0,0.00027397,2]
[311653420,1705284633127,-500.0,0.00027397,2]
[311653421,1705284633137,-500.48723429,0.00027397,2]
[311653422,1705284633146,-500.0,0.00027397,2]
[311653423,1705284633157,-500.0,0.00027397,2]
[311653424,1705284633167,-500.0,0.00027397,2]
[311653425,1705284633177,-500.0,0.00027397,2]
[311653426,1705284633186,-505.30062335,0.00027397,2]
[311653427,1705284633196,-500.0,0.00027397,2]
[311653428,1705284633205,-500.0,0.00027397,2]
[311653429,1705284633214,-500.23364505,0.00027397,2]
[311653430,1705284633224,-500.25080538,0.00027397,2]
[311653431,1705284633233,-502.37082528,0.00027397,2]
[311653432,1705284633242,-500.0,0.00027397,2]
[311653433,1705284633253,-500.0,0.00027397,2]
[311653434,1705284633262,-500.0,0.00027397,2]
[311653435,1705284633271,-2033.69,0.00027397,2]
[311653436,1705284633284,-501.87572011,0.00027397,2]
[311653437,1705284633293,-500.0,0.00027397,2]
[311653438,1705284633303,-500.0,0.00027397,2]
[311653439,1705284633314,-530.35,0.00027397,2]
[311653440,1705284633324,-501.03191703,0.00027397,2]
[311653441,1705284633334,-500.81326862,0.00027397,2]
[311653442,1705284633343,-500.0,0.00027397,2]
[311653443,1705284633353,-1992.7,0.00027397,2]
[311653444,1705284633364,-500.0,0.00027397,2]
[311653445,1705284633375,-500.0,0.00027397,2]
[311653446,1705284633384,-500.0,0.00027397,2]
[311653447,1705284633393,-576.0,0.00027397,2]
[311653448,1705284633405,-500.23314819,0.00027397,2]
[311653449,1705284633416,-500.0,0.00027397,2]
[311653450,1705284633425,-501.52814819,0.00027397,2]
[311653451,1705284633435,-519.52743973,0.00027397,2]
[311653452,1705284633444,-500.0,0.00027397,2]
[311653453,1705284633453,-500.93596501,0.00027397,2]
[311653454,1705284633465,-500.49039529,0.00027397,2]
[311653455,1705284633474,-1175.88,0.00027397,2]
[311653456,1705284633485,-502.81073707,0.00027397,2]
[311653457,1705284633494,-501.98531092,0.00027397,2]
[311653458,1705284633505,-500.0,0.00027397,2]
[311653459,1705284633515,-500.0,0.00027397,2]
[311653460,1705284633524,-500.0,0.00027397,2]
[311653461,1705284633534,-500.0,0.00027397,2]
[311653462,1705284633547,-500.0,0.00027397,2]
[311653463,1705284633558,-503.23411756,0.00027397,2]
[311653464,1705284633567,-500.0,0.00027397,2]
[311653465,1705284633577,-572.92806522,0.00027397,2]
[311653466,1705284633587,-500.0,0.00027397,2]
[311653467,1705284633596,-500.0,0.00027397,2]
[311653468,1705284633606,-500.0,0.00027397,2]
[311653469,1705284633617,-508.53481292,0.00027397,2]
[311653470,1705284633626,-500.0,0.00027397,2]
[311653471,1705284633635,-511.01,0.00027397,2]
[311653472,1705284633644,-256.92126022,0.00027397,2]
[311653473,1705284633653,-500.0,0.00027397,2]
[311653474,1705284633662,-500.0,0.00027397,2]
[311653475,1705284633672,-502.48270235,0.00027397,2]
[311653476,1705284633681,-500.78930843,0.00027397,2]
[311653477,1705284633691,-503.55172519,0.00027397,2]
[311653478,1705284633700,-426.88797914,0.00027397,2]
[311653479,1705284633710,-500.0,0.00027397,2]
[311653480,1705284633720,-500.0,0.00027397,2]
[311653481,1705284633729,-500.0,0.00027397,2]
[311653482,1705284633739,-500.0,0.00027397,2]
[311653483,1705284633748,-500.0,0.00027397,2]
[311653484,1705284633757,-500.0,0.00027397,2]
[311653485,1705284633767,-500.0,0.00027397,2]
[311653486,1705284633778,-518.11948557,0.00027397,2]
[311653487,1705284633789,-500.0,0.00027397,2]
[311653488,1705284633800,-502.48377225,0.00027397,2]
[311653489,1705284633810,-325.03708015,0.00027397,2]
[311653503,1705284638492,-155.00465014,0.00024504,4]
[311653504,1705284638501,-167.57606295,0.00027397,2]
[311653505,1705284638514,-7.3868569,0.00027397,2]
[311653506,1705284638524,-839.18,0.00027397,2]
[311653507,1705284638533,-1107.63,0.00027397,2]
[311653508,1705284638543,-497.70383752,0.00027397,2]
[311653509,1705284638553,-401.60196883,0.00027397,2]
[311653510,1705284638563,-210.27660669,0.00027397,2]
[311653511,1705284638572,-500.0,0.00027397,2]
[311653512,1705284638582,-503.98676531,0.00027397,2]
[311653513,1705284638593,-500.0,0.00027397,2]
[311653514,1705284638603,-504.468551,0.00027397,2]
[311653516,1705284638614,-504.8929549,0.00027397,2]
[311653517,1705284638623,-510.37006199,0.00027397,2]
[311653518,1705284638633,-500.43796981,0.00027397,2]
[311653520,1705284638643,-1000.30119307,0.00027397,2]
[311653522,1705284638652,-1000.0,0.00027397,2]
[311653524,1705284638665,-500.0,0.00027397,2]
[311653526,1705284638674,-1001.18598965,0.00027397,5]
[311653528,1705284638683,-500.85728757,0.00027397,2]
[311653529,1705284638692,-500.0,0.00027397,2]
[311653531,1705284638702,-501.13132414,0.00027397,2]
[311653532,1705284638712,-500.0,0.00027397,2]
[311653533,1705284638722,-500.0,0.00027397,2]
[311653534,1705284638731,-500.0,0.00027397,2]
[311653535,1705284638740,-500.0,0.00027397,2]
[311653536,1705284638749,-500.0,0.00027397,2]
[311653537,1705284638759,-500.0,0.00027397,2]
[311653538,1705284638769,-500.0,0.00027397,2]
[311653539,1705284638779,-500.95051049,0.00027397,2]
[311653540,1705284638789,-538.9977585,0.00027397,2]
[311653541,1705284638798,-502.903076,0.00027397,2]
[311653542,1705284638807,-750.66,0.00027397,2]
[311653543,1705284638816,-501.15461094,0.00027397,2]
[311653544,1705284638826,-500.0,0.00027397,2]
[311653545,1705284638835,-502.54277771,0.00027397,2]
[311653546,1705284638845,-427.61481384,0.00027397,2]
[311653547,1705284638854,-500.0,0.00027397,2]
[311653548,1705284638863,-500.59379267,0.00027397,2]
[311653549,1705284638873,-500.0,0.00027397,2]
[311653550,1705284638883,-692.74,0.00027397,2]
[311653551,1705284638893,-263.46749869,0.00027397,2]
[311653552,1705284638902,-580.68,0.00027397,2]
[311653553,1705284638915,-500.0,0.00027397,2]
[311653554,1705284638924,-500.0,0.00027397,2]
[311653555,1705284638934,-607.63560946,0.00027397,2]
[311653556,1705284638943,-500.0,0.00027397,2]
[311653557,1705284638955,-500.69934693,0.00027397,2]
[311653558,1705284638973,-500.0,0.00027397,2]
[311653559,1705284638982,-503.27883976,0.00027397,2]
[311653560,1705284638992,-640.00492677,0.00027397,2]
[311653561,1705284639001,-1242.23,0.00027397,2]
[311653562,1705284639010,-504.42683883,0.00027397,2]
[311653563,1705284639020,-502.42678744,0.00027397,2]
[311653564,1705284639030,-500.0,0.00027397,2]
[311653565,1705284639039,-531.3,0.00027397,2]
[311653566,1705284639048,-500.0,0.00027397,2]
[311653567,1705284639059,-500.0,0.00027397,2]
[311653568,1705284639068,-501.61517062,0.00027397,2]
[311653569,1705284639077,-500.0,0.00027397,2]
[311653570,1705284639086,-502.48491757,0.00027397,2]
[311653571,1705284639096,-500.0,0.00027397,2]
[311653572,1705284639105,-500.0,0.00027397,2]
[311653573,1705284639115,-505.76347654,0.00027397,2]
[311653574,1705284639124,-500.0,0.00027397,2]
[311653575,1705284639134,-500.0,0.00027397,2]
[311653576,1705284639143,-500.0,0.00027397,2]
[311653577,1705284639152,-500.0,0.00027397,2]
[311653578,1705284639164,-627.74839216,0.00027397,2]
[311653579,1705284639173,-506.40423692,0.00027397,2]
[311653580,1705284639184,-702.22,0.00027397,2]
[311653581,1705284639193,-4949.31,0.00027397,2]
[311653582,1705284639203,-626.7,0.00027397,2]
[311653583,1705284639213,-501.59632751,0.00027397,2]
[311653584,1705284639222,-500.0,0.00027397,2]
[311653585,1705284639232,-501.8563129,0.00027397,2]
[311653586,1705284639241,-505.09052415,0.00027397,2]
[311653587,1705284639250,-593.14,0.00027397,2]
[311653588,1705284639260,-574.04,0.00027397,2]
[311653589,1705284639275,-884.28,0.00027397,2]
[311653590,1705284639284,-500.0,0.00027397,2]
[311653591,1705284639293,-507.51306426,0.00027397,2]
[311653592,1705284639303,-500.0,0.00027397,2]
[311653593,1705284639312,-500.0,0.00027397,2]
[311653594,1705284639322,-501.16451184,0.00027397,2]
[311653595,1705284639331,-500.0,0.00027397,2]
[311653596,1705284639340,-500.0,0.00027397,2]
[311653597,1705284639351,-500.0,0.00027397,2]
[311653598,1705284639360,-981.39,0.00027397,2]
[311653599,1705284639370,-155.0,0.00027397,2]
[311653600,1705284639379,-500.0,0.00027397,2]
[311653601,1705284639388,-773.62,0.00027397,2]
[311653602,1705284639397,-500.0,0.00027397,2]
[311653603,1705284639408,-500.0,0.00027397,2]
[311653604,1705284639419,-500.0,0.00027397,2]
[311653605,1705284639428,-500.0,0.00027397,2]
[311653606,1705284639438,-500.48195063,0.00027397,2]
[311653607,1705284639447,-506.080899,0.00027397,2]
[311653608,1705284639456,-504.8361977,0.00027397,2]
[311653609,1705284639465,-500.0,0.00027397,2]
[311653610,1705284639475,-501.02203738,0.00027397,2]
[311653611,1705284639485,-500.0,0.00027397,2]
[311653612,1705284639494,-529.74269443,0.00027397,2]
[311653613,1705284639503,-500.0,0.00027397,2]
[311653614,1705284639512,-500.0,0.00027397,2]
[311653615,1705284639521,-500.0,0.00027397,2]
[311653616,1705284639530,-500.0,0.00027397,2]
[311653617,1705284639541,-565.18204006,0.00027397,2]
[311653618,1705284639551,-500.0,0.00027397,2]
[311653619,1705284639560,-500.0,0.00027397,2]
[311653620,1705284639569,-356.58383934,0.00027397,2]
[311653621,1705284639579,-2027.95,0.00027397,2]
[311653622,1705284639588,-500.0,0.00027397,2]
[311653623,1705284639596,-500.0,0.00027397,2]
[311653624,1705284639606,-1062.99,0.00027397,2]
[311653625,1705284639615,-500.0,0.00027397,2]
[311653626,1705284639625,-500.0,0.00027397,2]
[311653627,1705284639636,-500.0,0.00027397,2]
[311653628,1705284639646,-510.11734616,0.00027397,2]
[311653629,1705284639655,-574.72,0.00027397,2]
[311653630,1705284639666,-500.0,0.00027397,2]
[311653631,1705284639676,-500.0,0.00027397,2]